Workbook

Sheet NSU
B1: Johanna Karjanlahti | E1: 1.9.2001 Siilinjärvi
B2: SUPERPESIS | E2: Runkosarja | I2: Kärkilyönnit (KL), pesänvälit | Q2: Runkosarja | U2: Ylempi loppusarja | Z2: Alempi loppusarja | AG2: Arvo-ottelut ja mitalit
B3: Vuosi | C3: Sija | D3: Seura | E3: OTT | F3: KUN | G3: LÖI | H3: TOI | I3: KL | J3: 0 > 1 | K3: 1 > 2 | L3: 2 > 3 | M3: 3 > k | N3: KL-% | P3: LÖI | Q3: TOI | R3: L+T | S3: KL | U3: OTT | V3: KUN | W3: LÖI | X3: TOI | Y3: KL | Z3: OTT | AA3: KUN | AB3: LÖI | AC3: TOI | AD3: KL | AE3: IL | AF3: LL | AG3: Halli | AH3: K | AI3: H | AJ3: P
B4: 2017 | D4: SiiPe | F4: suomensarja
B5: 2018 | D5: SiiPe | F5: suomensarja
B6: 2018 | C6: 5. | D6: SMJ | E6: 1 | F6: 0 | G6: 0 | H6: 0 | I6: 3 | J6: 1 | K6: 1 | L6: 1 | M6: 0 | N6: 75.0 % | O6: 4
B7: 2019 | C7: 5. | D7: SMJ | E7: 23 | F7: 0 | G7: 4 | H7: 2 | I7: 57 | J7: 33 | K7: 6 | L7: 14 | M7: 4 | N7: 51.8 % | O7: 110 | U7: 4 | V7: 0 | W7: 0 | X7: 1 | Y7: 6
B8: 2020 | C8: 6. | D8: SMJ | E8: 16 | F8: 0 | G8: 3 | H8: 5 | I8: 24 | J8: 3 | K8: 10 | L8: 8 | M8: 3 | N8: 54.5 % | O8: 44 | U8: 3 | V8: 0 | W8: 1 | X8: 1 | Y8: 7
B9: 2021 | C9: 5. | D9: SMJ | E9: 24 | F9: 0 | G9: 2 | H9: 11 | I9: 67 | J9: 13 | K9: 38 | L9: 14 | M9: 2 | N9: 50.8 % | O9: 132 | U9: 4 | V9: 0 | W9: 2 | X9: 1 | Y9: 14
B10: 2022 | C10: 5. | D10: SMJ | E10: 19 | F10: 1 | G10: 1 | H10: 7 | I10: 36 | J10: 10 | K10: 16 | L10: 8 | M10: 2 | N10: 45.6 % | O10: 79 | U10: 3 | V10: 0 | W10: 0 | X10: 1 | Y10: 2
B11: 2023 | C11: 5. | D11: SMJ 2 | F11: ykköspesis
B12: 2023 | C12: 4. | D12: SMJ | E12: 11 | F12: 0 | G12: 0 | H12: 2 | I12: 6 | J12: 2 | K12: 1 | L12: 3 | M12: 0 | N12: 37.5 % | O12: 16 | U12: 3 | V12: 0 | W12: 0 | X12: 0 | Y12: 2
B13: 2024 | C13: 3. | D13: SMJ | E13: 1 | F13: 0 | G13: 0 | H13: 0 | I13: 1 | J13: 1 | K13: 0 | L13: 0 | M13: 0 | N13: 100.0 % | O13: 1 | AJ13: 1
B14: 2024 | C14: 12. | D14: HP | E14: 17 | F14: 0 | G14: 2 | H14: 4 | I14: 40 | J14: 12 | K14: 14 | L14: 12 | M14: 2 | N14: 47.1 % | O14: 85
B15: Yhteensä | E15: =SUM(E4:E14) -> 112 | F15: =SUM(F4:F14) -> 1 | G15: 12 | H15: 31 | I15: 234 | J15: 75 | K15: 86 | L15: 60 | M15: 13 | N15: =PRODUCT(I15/O15) -> 49.7 % | O15: =SUM(O4:O14) -> 471 | U15: 17 | V15: 0 | W15: 3 | X15: 4 | Y15: 31 | Z15: 0 | AA15: 0 | AB15: 0 | AC15: 0 | AD15: 0 | AE15: 0 | AF15: 0 | AG15: 0 | AH15: 0 | AI15: 0 | AJ15: 1
B16: Pesispörssi | D16: =SUM(F15:H15)+((I15-F15-G15)/3)+(E15/3)+(AE15*25)+(AF15*25)+(AG15*10)+(AH15*25)+(AI15*20)+(AJ15*15)-15 -> 155.0
B18: URA SUPERISSA | E18: OTT | F18: KUN | G18: LÖI | H18: TOI | I18: KL | K18: ka/L | L18: ka/T | M18: ka/KL | N18: K - % | P18: ENSIMMÄISET
B19: Runkosarja | E19: =PRODUCT(E15) -> 112 | F19: =PRODUCT(F15) -> 1 | G19: =PRODUCT(G15) -> 12 | H19: =PRODUCT(H15) -> 31 | I19: =PRODUCT(I15) -> 234 | K19: =PRODUCT((F19+G19)/E19) -> 0.12 | L19: =PRODUCT(H19/E19) -> 0.28 | M19: =PRODUCT(I19/E19) -> 2.09 | N19: =PRODUCT(N15) -> 49.7 % | O19: =PRODUCT(O15) -> 471 | P19: Ottelu | R19: 30.05. 2018 Pesäkarhut - SMJ 2-0 (3-1, 6-0) | AA19: 1. ottelu | AD19: 16 v 8 kk 29 pv
B20: Ylempi loppusarja | E20: =PRODUCT(U15) -> 17 | F20: =PRODUCT(V15) -> 0 | G20: =PRODUCT(W15) -> 3 | H20: =PRODUCT(X15) -> 4 | I20: =PRODUCT(Y15) -> 31 | K20: =PRODUCT((F20+G20)/E20) -> 0.18 | L20: =PRODUCT(H20/E20) -> 0.24 | M20: =PRODUCT(I20/E20) -> 1.82 | N20: =PRODUCT(I20/O20) -> 50.0 % | O20: 62 | P20: Lyöty | R20: 07.06. 2019 SMJ - LaVe 2-0 (10-2, 5-1) | AA20: 9. ottelu | AD20: 16 v 8 kk 29 pv
B21: Alempi loppusarja | O21: 0 | P21: Tuotu | R21: 30.05. 2019 SMJ - MyVe 2-0 (7-3, 13-3) | AA21: 7. ottelu | AD21: 17 v 8 kk 29 pv
B22: KAIKKI | E22: =SUM(E19:E21) -> 129 | F22: =SUM(F19:F21) -> 1 | G22: =SUM(G19:G21) -> 15 | H22: =SUM(H19:H21) -> 35 | I22: =SUM(I19:I21) -> 265 | K22: =PRODUCT((F22+G22)/E22) -> 0.12 | L22: =PRODUCT(H22/E22) -> 0.27 | M22: =PRODUCT(I22/E22) -> 2.05 | N22: =PRODUCT(I22/O22) -> 49.7 % | O22: =SUM(O19:O21) -> 533 | P22: Kunnari | R22: 23.05. 2022 Kirittäret - SMJ 2-0 (7-4, 4-2) | AA22: 79. ottelu | AD22: 20 v 8 kk 22 pv
B24: Vuoden tyttölukkari 2018, 2019
B26: Seurat | D26: SiiPe = Siilinjärven Pesis (1987), kasvattajaseura
D27: SMJ = Seinäjoen Maila-Jussit (1932)
D28: HP = Haminan Palloilijat (1928)

Sheet Arvo-ottelut
B1: ITÄ - LÄNSI - KORTTI
B2: Johanna Karjanlahti | C2: 1.9.2001 Siilinjärvi
B3: B-TYTÖT | C3: Itä - Länsi, tulos | D3: Joukkue | E3: Seura | G3: V | H3: T | I3: H | J3: Up. | K3: Lj. | L3: Palk. | M3: O | N3: K | O3: L | P3: T | Q3: KL | R3: 1 | S3: 2 | T3: 3 | U3: k | V3: KL-% | W3: Pelinjohtaja | X3: Yleisöä
B4: 30.06. 2018 Joensuu | C4: 1-2 (2-3, 2-0, 0-1) | D4: Itä | E4: SiiPe | I4: 1 | J4: L | K4: 7 | L4: II p | M4: 1 | Q4: 6/8 | R4: 1/2 | S4: 4/5 | T4: 1/1 | V4: 75.0 % | W4: Erno Tuomainen | X4: 1062
B5: 06.07. 2019 Seinäjoki | C5: 0-1 (4-4, 0-4) | D5: Länsi | E5: SMJ | G5: 1 | J5: L | K5: 8 | M5: 1 | Q5: 1/4 | R5: 0/1 | S5: 0/1 | T5: 1/1 | U5: 0/1 | V5: 25.0 % | W5: Jussi Frantsila | X5: 1054
B6: Yhteensä | G6: 1 | I6: 1 | M6: 2 | Q6: 7/12 | R6: 1/3 | S6: 4/6 | T6: 2/2 | U6: 0/1 | V6: 58.3 %
